Cogmind - Beta 13 @@@ ROGUE MODE // 2024.03.02 @ 18:01:02 Player: Kaz Result: Destroyed by G-34 Mercenary with Small Laser Performance ------------- Evolutions (0) 0 Regions Visited (1) 200 Robots Destroyed (16) 80 Value Destroyed (409) 409 Prototype IDs (0) 0 Alien Tech Used (0) 0 Bonus (0) 0 TOTAL SCORE: 689 Bonus ------- None Cogmind --------- Core Integrity 0/250 Matter 295/300 Energy 115/125 System Corruption 0% Temperature Warm (190) Movement Rolling (95) Ox1 Location -10/Materials Parts ------- > --- POWER (1) -------- Light Ion Engine > --- PROPULSION (2) --- Wheel Wheel > --- UTILITY (2) ------ Large Storage Unit > --- WEAPON (2) ------- Medium Laser > --- INVENTORY (15) --- Aluminum Leg Aluminum Leg Wheel Small Storage Unit Large Storage Unit Light Armor Plating Small Laser Small Laser Small Laser Mining Claw Peak State ------------ > --- POWER ------------ Light Nuclear Core > --- PROPULSION ------- Wheel Compact Wheel > --- UTILITY ---------- Small Storage Unit Light Armor Plating > --- WEAPON ----------- Assault Rifle Mining Laser > --- INVENTORY -------- Light Ion Engine Aluminum Leg Aluminum Leg Wheel Wheel Light Armor Plating EM Pulse Gun EM Pulse Gun [Rating: 9] Favorites ----------- Power Light Nuclear Core Engine Light Ion Engine Power Core Light Nuclear Core Propulsion Wheel Wheel Wheel Utility Small Storage Unit Storage Small Storage Unit Protection Light Armor Plating Weapon Assault Rifle Energy Gun EM Pulse Gun Ballistic Gun Assault Rifle Special Weapon Mining Laser Slashing Weapon Mining Claw Build | -11 -10 ------- Run | Yrd Mat Slots Evolved . | . . Power . | . . Propulsion . | . . Utility . | . . Weapon . | . . Parts Attached 19 | 5 14 Power 2 | . 2 Engine 1 | . 1 Core 1 | . 1 Reactor . | . . Propulsion 4 | 2 2 Treads . | . . Leg . | . . Wheel 4 | 2 2 Hover . | . . Flight . | . . Utility 4 | 1 3 Device . | . . Storage 2 | 1 1 Processor . | . . Hackware . | . . Protection 2 | . 2 Artifact . | . . Weapon 9 | 2 7 Energy Gun 4 | 1 3 Energy Cannon . | . . Ballistic Gun 2 | 1 1 Ballistic Cannon . | . . Launcher . | . . Special Weapon 2 | . 2 Impact Weapon . | . . Slashing Weapon 1 | . 1 Piercing Weapon . | . . Special Melee Weapon . | . . Unidentified Prototypes . | . . Parts Lost 7 | . 7 Power 1 | . 1 Propulsion 2 | . 2 Utility 1 | . 1 Weapon 3 | . 3 Highest Loss Streak 6 | . 6 To Critical Strikes . | . . Average Slot Usage (%) 87 | . 87 Engine 2 | . 2 Core 5 | . 5 Wheel 27 | . 27 Storage 14 | . 14 Protection 9 | . 9 Energy Gun 6 | . 6 Ballistic Gun 12 | . 12 Special Weapon 7 | . 7 Naked Turns . | . . Heaviest Build 31 | 9 31 Greatest Support 26 | 26 26 Greatest Overweight (x) 2 | 2 1 Average Overweight (x) . | . . Largest Inventory Capacity 15 | 8 15 Average Capacity 10 | 7 10 Most Carried 10 | 4 10 Average Carried 7 | 2 7 Final Capacity 15 | 8 15 Final Carried 10 | 4 10 Class Distribution -------------------- 100% | Mutant Dominant Class ---------------- Mutant | -10/Materials Resources | -11 -10 ----------- Run | Yrd Mat Matter Collected 421 | 235 186 Remotely . | . . Salvage Created 452 | . 452 Parts 28 | . 28 Haulers Intercepted 2 | . 2 Recyclers Shooed . | . . Parts Field Recycled . | . . Retrieved Matter . | . . Parts Self-Destructed . | . . Prevented . | . . Kills | -11 -10 ------- Run | Yrd Mat Combat Hostiles Destroyed 9 | . 9 Guns 7 | . 7 Cannons 2 | . 2 Classes Destroyed 4 | . 4 Worker 2 | . 2 Hauler 2 | . 2 Watcher 3 | . 3 Grunt 9 | . 9 Best Kill Streak 7 | . 7 Combat Bots Only 6 | . 6 Max Kills in Single Turn 1 | . 1 Gunslinging . | . . Exploded . | . . Melee . | . . Uniques/NPCs Destroyed . | . . Combat | -11 -10 -------- Run | Yrd Mat Hostile Shots Fired 80 | . 80 Missed 15 | . 15 Damage Taken 792 | . 792 Core 254 | . 254 Absorbed by Shields . | . . Core Remaining (%) 100 | 100 . Volleys Fired 52 | . 52 Largest 2 | . 2 Hottest 150 | . 150 Shots Fired 68 | . 68 Gun 61 | . 61 Cannon . | . . Launcher . | . . Special 7 | . 7 Kinetic 46 | . 46 Thermal 19 | . 19 Explosive . | . . Electromagnetic 3 | . 3 Robot Hit Streak 14 | . 14 Robot Miss Streak 2 | . 2 Penetration Max . | . . Secondary Targets . | . . Shots Hit Robots 52 | . 52 Core Hits 30 | . 30 Critical Kills . | . . Critical Parts Destroyed . | . . Critical Strikes . | . . Melee Attacks . | . . Impact . | . . Slashing . | . . Piercing . | . . Sneak Attacks . | . . Combat Hostiles . | . . Follow-up Attacks . | . . Damage Inflicted 732 | . 732 Guns 554 | . 554 Cannons . | . . Explosions 46 | . 46 Melee . | . . Ramming 12 | . 12 Kinetic 389 | . 389 Thermal 283 | . 283 Explosive . | . . Electromagnetic 48 | . 48 Impact . | . . Slashing . | . . Piercing . | . . Highest Corruption . | . . Average Corruption . | . . Corruption Purged . | . . Corruption Blocked . | . . Overload Shots . | . . Overflow Damage . | . . Projectiles . | . . Explosions . | . . Melee . | . . Knockbacks 1 | . 1 Impact 1 | . 1 Kinetic . | . . Secondary . | . . Self-Inflicted Damage 5 | . 5 Shots . | . . Rammed 4 | . 4 Targets Rammed 4 | . 4 Kicked . | . . Crushed . | . . Highest Temperature 184 | . 184 Average Temperature 53 | . 53 Received Heat Transfer 435 | . 435 Siege Activations . | . . Robots Corrupted . | . . Combat Hostiles . | . . Parts Fried 1 | . 1 Impact Corruptions . | . . Robots Melted . | . . Combat Hostiles . | . . Parts Melted . | . . Heat Transferred 610 | . 610 Parts Sabotaged . | . . Parts Stolen . | . . Parts Stripped . | . . Power Chain Reactions 1 | . 1 Alert | -11 -10 ------- Run | Yrd Mat Peak Influence 159 | . 159 Initial . | . . Average 65 | . 69 Maximum Alert Level . | . . Low Security (%) 100 | 100 100 Level 1 . | . . Level 2 . | . . Level 3 . | . . Level 4 . | . . Level 5 . | . . High Security . | . . Max Security . | . . Squads Dispatched 2 | . 2 Investigation 1 | . 1 Extermination . | . . Reinforcement 1 | . 1 Assault . | . . Garrison . | . . Intercept . | . . Searches Triggered . | . . Construction Impeded . | . . Haulers Reinforced . | . . Active Scanning Responses . | . . Cargo Convoy Interrupts . | . . Stealth | -11 -10 --------- Run | Yrd Mat Distress Signals . | . . Communications Jammed . | . . Distress Signals . | . . Times Spotted 15 | . 15 Peak Tracking Total 4 | . 4 Tactical Retreats . | . . Traps | -11 -10 ------- Run | Yrd Mat Traps Triggered . | . . Indirectly . | . . Trap Hack Attempts . | . . Triggered . | . . Disarmed . | . . Reprogrammed . | . . Reused . | . . Traps Extracted . | . . Installed . | . . Triggered . | . . Machines | -11 -10 ---------- Run | Yrd Mat Machines Disabled 1 | . 1 Max in Single Turn 1 | . 1 Machines Repaired . | . . Machines Dismantled . | . . Machines Sabotaged . | . . Overloaded Fab Kills . | . . Hacking | -11 -10 --------- Run | Yrd Mat Machines Accessed 2 | . 2 Terminals 2 | . 2 Fabricators . | . . Repair Stations . | . . Recycling Units . | . . Scanalyzers . | . . Garrison Access . | . . Total Hacks 6 | . 6 Successful 1 | . 1 Failed 5 | . 5 Catastrophic 1 | . 1 Database Lockouts . | . . Manual . | . . Terminals 6 | . 6 Fabricators . | . . Repair Stations . | . . Recycling Units . | . . Scanalyzers . | . . Garrison Access . | . . Terminal Hacks 1 | . 1 Record 1 | . 1 Fabricator Hacks . | . . Repair Station Hacks . | . . Recycling Unit Hacks . | . . Scanalyzer . | . . Garrison Access Hacks . | . . Unauthorized Hacks . | . . Terminals . | . . Fabricators . | . . Repair Stations . | . . Recycling Units . | . . Scanalyzers . | . . Garrison Access . | . . Data Cores Recovered . | . . Used . | . . Hacking Detections 2 | . 2 Full Trace Events 1 | . 1 Feedback Events . | . . Feedback Blocked . | . . Robot Schematics Acquired . | . . Robots Built . | . . Authchips . | . . Time . | . . Total Robot Build Rating . | . . Part Schematics Acquired . | . . Parts Built . | . . Authchips . | . . Time . | . . Total Part Build Rating . | . . Parts Repaired . | . . Time . | . . Parts Recycled . | . . Recycled Matter . | . . Retrieved Matter . | . . Retrieved Components . | . . Parts Scanalyzed . | . . Part Schematics Acquired . | . . Parts Damaged . | . . Bothacking | -11 -10 ------------ Run | Yrd Mat Used RIF Installer . | . . Robots Hacked . | . . Non-combat . | . . Combat . | . . Robot Hacks Applied . | . . Relay Couplers Released . | . . Fabnet Peak Effective % . | . . Robots Rewired . | . . Allies Hacked . | . . Hacks Repelled . | . . Allies | -11 -10 -------- Run | Yrd Mat Total Allies . | . . Largest Group . | . . Highest-Rated Group . | . . Highest-Rated Ally . | . . Total Orders . | . . Ally Attacks . | . . Total Damage . | . . Kills . | . . Allies Corrupted . | . . Allies Melted . | . . Intel | -11 -10 ------- Run | Yrd Mat Robot Analysis Total . | . . Derelict Logs Recovered . | . . Drone Launches . | . . Drone Recoveries . | . . Exploration | -11 -10 ------------- Run | Yrd Mat Turns Passed 841 | 58 783 Spaces Moved 642 | 41 601 Core 22 | 22 . Treads . | . . Legs . | . . Wheels 620 | 19 601 Hover . | . . Flight . | . . Fastest Speed 50 | 50 90 Average Speed 93 | 113 92 Slowest Speed 150 | 150 115 Overloaded Moves . | . . Propulsion Burnouts . | . . Robots Hopped . | . . Cave-ins Triggered . | . . Exploration Rate (%) 45 | 4 86 Regions Visited 1 Branch Regions . Pre-discovered Areas . | . . Known Exits Taken . | . . Unknown Exits Taken 1 | 1 . Scrap Searched . | . . Spaces Dug . | . . Terrain Destroyed 6 | . 6 Melee . | . . Projectile . | . . AOE 6 | . 6 Terrain Rammed . | . . Walls Destroyed . | . . Machines Disabled . | . . Actions | -11 -10 --------- Run | Yrd Mat Total 799 | 49 750 Wait 61 | . 61 Move 641 | 40 601 Hop . | . . Pick Up 18 | 4 14 Fast Attach 7 | 5 2 Attach 5 | . 5 Detach . | . . Swap 7 | . 7 Drop 4 | . 4 Fire 52 | . 52 Melee . | . . Ram 4 | . 4 Kick . | . . Crush . | . . Escape Stasis . | . . Rewire . | . . Trap . | . . Miscellaneous . | . . Route ------- -11/Scrapyard -10/Materials (discovered 5 exits: [*Mat x3] / [*Min x2]) History --------- Turn | Location | Event 28 | -11/Scrapyard | Discovered new exit (range 16) 59 | -11/Scrapyard | Entered Materials 249 | -10/Materials | Discovered new exit (range 11) 316 | -10/Materials | Build established: Mutant 403 | -10/Materials | Discovered new exit (range 9) 499 | -10/Materials | Discovered new exit (range 15) 601 | -10/Materials | Discovered new exit (range 15) 607 | -10/Materials | Core integrity fell below 50% 633 | -10/Materials | Core integrity fell below 20% 661 | -10/Materials | Lost 6 parts (1p2n1u2w) 729 | -10/Materials | Discovered new exit (range 16) 842 | -10/Materials | Destroyed by G-34 Mercenary with Small Laser Last Messages --------------- 00694_ K-01 Serf collects debris. 00694_ Acquired 10 matter. 00695_ Slammed into T-07 Excavator. 00695_ Destabilizing: System interference. 00695_ Sml. Laser temporarily disabled. 00697_ K-01 Serf collects debris. 00698_ R-06 Scavenger collects Aluminum Leg. 00701_ K-01 Serf collects debris. 00729_ EXIT=FOUND 00739_ Acquired Mining Laser. 00795_ R-06 Scavenger collects Sml. Laser. 00798_ Dropped Lgt. Assault Rifle. 00799_ R-06 Scavenger collects Ion Engine. 00802_ Acquired 3 matter. 00803_ R-06 Scavenger collects Sml. Laser. 00803_ Acquired 18 matter. 00814_ Acquired Med. Laser. 00831_ G-47 Trooper destroyed. 00838_ Mining Laser destroyed. 00840_ K-01 Serf destroyed. Map ----- +----------------------------------------------------+ | # # """ #????????????# # # # | | # + T" #####????????# ! # # # | | #! ] # """ ???????######## # """ # | | #!! # ??????????????# + """ # | | #!! # ??????????????# # """ # | | ######## ######### ##???????????????# # # | | # """ # #??????????????????????????# # # | | # "T" # #??????????????????????????# # # | | + # #??????????????????????????# # "T" # | | # ! # #???????????? ???????????# # # | | ######## ###########?? #??????????# ####### | | #####???# # #?# #??????????# # # | | #???# # #?# #??????????# # # | | ! #???# # #?# #??????????# # # | | #???# # #?# #?########## # # | | ##### + #?# #?# # # # | | ##### # #?# #?# # # # | | + # #?# #?# # + # | | ##### # #?# #?# + # # | | ##### ###########?# #?# # # # | | #####???# #########???#t #?# #[### # | | ????????# # #???# #?# # #?# # | | #######?# / #???# #?# # #?# # | | # #???# #?# # #?####### | | ###+#####???# #?########## #?#! = # | | # #######@ ############ ### # | | ############# %* %% # """ # | | ????????????# g* + """ # | | ????????????# r %= """ [[% # """ # | | ????????????# ##/######### """ [%% # # | | ????????????## ## #????# " [[! # """ # | | ?????????????# ##""" #????# %% # """ # | | ?????????????# ##""" #????# % # """ # | | ?????????????# ##""" #????######### % # # | | ????????###### ## !#????????????# % # # | | ????????# #########???????????# ####### | | #???????# # #???????????# #+#?????? | | #???????# #"" #???????????# #???????? | | #???????# #"Y """ #???????????# #???????? | | #???????# #"" """ #???????????# #???????? | | #???????# # """ #??????????? #???????? | | #???????# + #??????????? #???????? | | #???????# # """ #?????????? +???????? | | #???????# < #### # """ #??????????## < #???????? | | #???????# ???# # """ #???????????# #???????? | | #???????####???# # #???????????#####???????? | | #??????????????# # * #???????????????????????? | | ???????????????# #########???????????????????????? | | ???????????????# #???????????????????????????????? | | ???????????##### ##??????????????????????????????? | +----------------------------------------------------+ Best States ------------- Heat Dissipation 25 Energy Generation 14 Energy Capacity 160 Matter Stores 300 Matter Capacity 300 Sight Range 16 Terrain Scan Density 10 Armor Coverage 150 Utility Shielding 33 Evasion (%) 42 Item Schematics ----------------- None Robot Schematics ------------------ None Fabricated ------------ Nothing Alien Tech Used ----------------- None Achievements -------------- None Challenges ------------ None Game ------ Seed PrecisionMappingCasing Manual? 0 Play Time 00:12:06 Cumulative 137.2 hours Start 2024.03.02 @ 17:52:11 End 2024.03.02 @ 18:01:02 Sessions 1 Manual Loads 0 Difficulty Rogue Special Mode None Game No. 84 Rogue 72 Adventurer 12 Explorer 0 Win Type - Total 1 Types 1/0/0/0/0/0/0/0/0 Lore% 19 Gallery% 36 Achievement% 29 Wizard Run 0 Options --------- Layout 1 ASCII 0 Keyboard 0 Movement Mouse Keybinds 0 Fullscreen 1 Font 32/SmallcapsGlow Map View 77x35 Zoom Use 0% Tactical HUD 1 Map Filters NONE Filters NONE Steam 1 RUN: f3bb8598-4a95-43f6-bcee-a9a5c01c295e